[Event "Titled Tuesday Blitz January 03 Early 2023"]
[White "Matinian, Nikita"]
[Black "aidenzhouu"]
[WhiteFideId "24129100"]
[WhiteElo "2407"]
[BlackElo "2382"]
[Result "1-0"]
[Round "01"]
[TimeControl "180+2"]
[Date "2023.01.03"]
[WhiteClock "0:00:58"]
[BlackClock "0:00:21"]

1. e4 {[%clk 0:02:50]}  c6 {[%clk 0:02:58]} 2. Nc3 {[%clk 0:02:48]}  d5 {[%clk 0:02:59]} 3. Nf3 {[%clk 0:02:48]}  dxe4 {[%clk 0:03:00]} 4. Nxe4 {[%clk 0:02:47]}  Nf6 {[%clk 0:03:00]} 5. Qe2 {[%clk 0:02:41]}  Nxe4 {[%clk 0:03:00]} 6. Qxe4 {[%clk 0:02:42]}  Qa5 {[%clk 0:03:00]} 7. b4 {[%clk 0:02:42]}  Qf5 {[%clk 0:03:00]} 8. Qxf5 {[%clk 0:02:42]}  Bxf5 {[%clk 0:03:01]} 9. Nd4 {[%clk 0:02:40]}  Bg6 {[%clk 0:02:57]} 10. f4 {[%clk 0:02:40]}  e5 {[%clk 0:02:49]} 11. fxe5 {[%clk 0:02:39]}  Bxb4 {[%clk 0:02:49]} 12. Bb2 {[%clk 0:02:28]}  Nd7 {[%clk 0:02:30]} 13. e6 {[%clk 0:02:28]}  Nf6 {[%clk 0:02:06]} 14. Bc4 {[%clk 0:02:27]}  O-O {[%clk 0:01:56]} 15. O-O-O {[%clk 0:02:26]}  Rfe8 {[%clk 0:01:40]} 16. Rhf1 {[%clk 0:02:22]}  fxe6 {[%clk 0:01:36]} 17. Bxe6+ {[%clk 0:02:18]}  Bf7 {[%clk 0:01:34]} 18. Bxf7+ {[%clk 0:02:16]}  Kxf7 {[%clk 0:01:35]} 19. Nf5 {[%clk 0:02:16]}  Re6 {[%clk 0:01:27]} 20. Rf3 {[%clk 0:02:15]}  Kg8 {[%clk 0:01:11]} 21. Rb3 {[%clk 0:01:40]}  Bd6 {[%clk 0:00:33]} 22. Rxb7 {[%clk 0:01:37]}  Bf8 {[%clk 0:00:27]} 23. Rf1 {[%clk 0:01:29]}  a5 {[%clk 0:00:27]} 24. Rc7 {[%clk 0:01:14]}  a4 {[%clk 0:00:26]} 25. Nd4 {[%clk 0:01:13]}  Re4 {[%clk 0:00:22]} 26. Nxc6 {[%clk 0:01:13]}  a3 {[%clk 0:00:21]} 27. Bxf6 {[%clk 0:01:13]}  gxf6 {[%clk 0:00:20]} 28. c3 {[%clk 0:01:09]}  Bg7 {[%clk 0:00:17]} 29. Nd4 {[%clk 0:01:05]}  f5 {[%clk 0:00:17]} 30. Nxf5 {[%clk 0:01:04]}  Be5 {[%clk 0:00:17]} 31. Nh6+ {[%clk 0:01:02]}  Kh8 {[%clk 0:00:17]} 32. Nf7+ {[%clk 0:01:03]}  Kg8 {[%clk 0:00:17]} 33. Nxe5 {[%clk 0:01:03]}  Rxe5 {[%clk 0:00:18]} 34. Rff7 {[%clk 0:01:02]}  Rb8 {[%clk 0:00:19]} 35. Rg7+ {[%clk 0:01:01]}  Kh8 {[%clk 0:00:19]} 36. Rxh7+ {[%clk 0:01:00]}  Kg8 {[%clk 0:00:20]} 37. Rcg7+ {[%clk 0:01:00]}  Kf8 {[%clk 0:00:20]} 38. Rh8+ {[%clk 0:00:59]}  Kxg7 {[%clk 0:00:21]} 39. Rxb8 {[%clk 0:00:59]}  Re2 {[%clk 0:00:21]} 40. Rb3 {[%clk 0:00:58]} 1-0


[Site "https://www.chess.com"]

[Event "Titled Tuesday Blitz January 03 Early 2023"]
[White "Da Silva Junior, Sediney Mari"]
[Black "Antonica, Dragos-Andrei"]
[WhiteFideId "2132079"]
[BlackFideId "1246372"]
[WhiteElo "2010"]
[BlackElo "2373"]
[Result "0-1"]
[Round "01"]
[TimeControl "180+2"]
[Date "2023.01.03"]
[WhiteClock "0:00:01"]
[BlackClock "0:00:21"]

1. e4 {[%clk 0:03:00]}  e6 {[%clk 0:02:59]} 2. Nf3 {[%clk 0:03:00]}  d5 {[%clk 0:02:59]} 3. e5 {[%clk 0:03:00]}  c5 {[%clk 0:02:59]} 4. b4 {[%clk 0:03:01]}  cxb4 {[%clk 0:02:58]} 5. a3 {[%clk 0:03:01]}  Nc6 {[%clk 0:02:58]} 6. axb4 {[%clk 0:03:01]}  Bxb4 {[%clk 0:02:58]} 7. c3 {[%clk 0:03:02]}  Bf8 {[%clk 0:02:57]} 8. d4 {[%clk 0:03:02]}  Nge7 {[%clk 0:02:58]} 9. Bd3 {[%clk 0:03:02]}  Nf5 {[%clk 0:02:57]} 10. h4 {[%clk 0:03:02]}  Be7 {[%clk 0:02:56]} 11. g4 {[%clk 0:03:01]}  Nxh4 {[%clk 0:02:54]} 12. Nxh4 {[%clk 0:03:01]}  Bxh4 {[%clk 0:02:55]} 13. Ba3 {[%clk 0:02:57]}  Be7 {[%clk 0:02:55]} 14. Rxh7 {[%clk 0:02:53]}  Rxh7 {[%clk 0:02:54]} 15. Bxh7 {[%clk 0:02:54]}  Bxa3 {[%clk 0:02:53]} 16. Nxa3 {[%clk 0:02:54]}  Qh4 {[%clk 0:02:54]} 17. Bd3 {[%clk 0:02:52]}  Qh1+ {[%clk 0:02:34]} 18. Bf1 {[%clk 0:02:13]}  Qe4+ {[%clk 0:02:32]} 19. Be2 {[%clk 0:02:12]}  Qh1+ {[%clk 0:02:25]} 20. Bf1 {[%clk 0:02:11]}  Bd7 {[%clk 0:01:57]} 21. Nb5 {[%clk 0:02:09]}  Kf8 {[%clk 0:01:57]} 22. Nd6 {[%clk 0:02:07]}  b6 {[%clk 0:01:51]} 23. Qd2 {[%clk 0:02:04]}  Ne7 {[%clk 0:01:44]} 24. Qf4 {[%clk 0:02:01]}  Be8 {[%clk 0:01:45]} 25. O-O-O {[%clk 0:01:39]}  Ng6 {[%clk 0:01:30]} 26. Qe3 {[%clk 0:01:23]}  Ba4 {[%clk 0:01:10]} 27. Re1 {[%clk 0:01:18]}  Qh6 {[%clk 0:01:00]} 28. g5 {[%clk 0:01:18]}  Qh2 {[%clk 0:00:57]} 29. Bd3 {[%clk 0:00:56]}  Nf4 {[%clk 0:00:55]} 30. g6 {[%clk 0:00:24]}  fxg6 {[%clk 0:00:45]} 31. f3 {[%clk 0:00:14]}  Kg8 {[%clk 0:00:43]} 32. Rg1 {[%clk 0:00:07]}  Rf8 {[%clk 0:00:36]} 33. Rf1 {[%clk 0:00:03]}  Qa2 {[%clk 0:00:20]} 34. Bb1 {[%clk 0:00:01]}  Qa3+ {[%clk 0:00:20]} 35. Kd2 {[%clk 0:00:01]}  Qb2+ {[%clk 0:00:21]} 0-1


[Site "https://www.chess.com"]

[Event "Titled Tuesday Blitz January 03 Early 2023"]
[White "Nathan, Nitish"]
[Black "Wagner, Dennis"]
[WhiteFideId "30927870"]
[BlackFideId "24650684"]
[WhiteElo "2071"]
[BlackElo "2595"]
[Result "1/2-1/2"]
[Round "01"]
[TimeControl "180+2"]
[Date "2023.01.03"]
[WhiteClock "0:00:07"]
[BlackClock "0:00:11"]

1. d4 {[%clk 0:02:59]}  d5 {[%clk 0:02:59]} 2. Bf4 {[%clk 0:02:57]}  Nf6 {[%clk 0:02:56]} 3. e3 {[%clk 0:02:57]}  e6 {[%clk 0:02:55]} 4. Nd2 {[%clk 0:02:56]}  Bd6 {[%clk 0:02:55]} 5. Bg3 {[%clk 0:02:56]}  O-O {[%clk 0:02:54]} 6. Ngf3 {[%clk 0:02:55]}  c5 {[%clk 0:02:54]} 7. c3 {[%clk 0:02:54]}  Qc7 {[%clk 0:02:54]} 8. Ne5 {[%clk 0:02:51]}  Nc6 {[%clk 0:02:51]} 9. Nxc6 {[%clk 0:02:48]}  Qxc6 {[%clk 0:02:40]} 10. Bd3 {[%clk 0:02:46]}  b6 {[%clk 0:02:29]} 11. O-O {[%clk 0:02:41]}  Bb7 {[%clk 0:02:29]} 12. Re1 {[%clk 0:02:35]}  Bxg3 {[%clk 0:02:28]} 13. hxg3 {[%clk 0:02:35]}  Rfd8 {[%clk 0:02:26]} 14. a4 {[%clk 0:02:31]}  Rac8 {[%clk 0:02:24]} 15. g4 {[%clk 0:02:25]}  h6 {[%clk 0:02:22]} 16. Qf3 {[%clk 0:02:19]}  Ne4 {[%clk 0:02:19]} 17. Bxe4 {[%clk 0:02:14]}  dxe4 {[%clk 0:02:20]} 18. Qg3 {[%clk 0:02:11]}  Qd5 {[%clk 0:02:01]} 19. Red1 {[%clk 0:01:22]}  cxd4 {[%clk 0:01:53]} 20. exd4 {[%clk 0:01:22]}  Qg5 {[%clk 0:01:53]} 21. Nf1 {[%clk 0:01:20]}  h5 {[%clk 0:01:40]} 22. Ne3 {[%clk 0:01:18]}  hxg4 {[%clk 0:00:59]} 23. Nxg4 {[%clk 0:01:17]}  Ba6 {[%clk 0:00:42]} 24. Re1 {[%clk 0:01:13]}  f5 {[%clk 0:00:42]} 25. Ne5 {[%clk 0:01:12]}  Qxg3 {[%clk 0:00:42]} 26. fxg3 {[%clk 0:01:13]}  Rf8 {[%clk 0:00:30]} 27. Re3 {[%clk 0:01:10]}  Bb7 {[%clk 0:00:28]} 28. Nd7 {[%clk 0:01:07]}  Rf7 {[%clk 0:00:27]} 29. Ne5 {[%clk 0:01:06]}  Rf6 {[%clk 0:00:27]} 30. Rf1 {[%clk 0:00:56]}  g5 {[%clk 0:00:27]} 31. Nd7 {[%clk 0:00:43]}  Rh6 {[%clk 0:00:26]} 32. Ne5 {[%clk 0:00:43]}  Kg7 {[%clk 0:00:26]} 33. c4 {[%clk 0:00:21]}  Rch8 {[%clk 0:00:25]} 34. Kf2 {[%clk 0:00:19]}  f4 {[%clk 0:00:25]} 35. gxf4 {[%clk 0:00:19]}  gxf4 {[%clk 0:00:26]} 36. Ree1 {[%clk 0:00:19]}  Rh2 {[%clk 0:00:22]} 37. Rg1 {[%clk 0:00:17]}  e3+ {[%clk 0:00:21]} 38. Ke2 {[%clk 0:00:17]}  R8h4 {[%clk 0:00:07]} 39. Nf3 {[%clk 0:00:15]}  Bxf3+ {[%clk 0:00:07]} 40. Kxf3 {[%clk 0:00:16]}  Kg6 {[%clk 0:00:08]} 41. g3 {[%clk 0:00:14]}  Rf2+ {[%clk 0:00:07]} 42. Ke4 {[%clk 0:00:12]}  fxg3+ {[%clk 0:00:06]} 43. Kxe3 {[%clk 0:00:12]}  Rxb2 {[%clk 0:00:05]} 44. Rxg3+ {[%clk 0:00:12]}  Kf6 {[%clk 0:00:05]} 45. Rf1+ {[%clk 0:00:12]}  Ke7 {[%clk 0:00:06]} 46. Rg7+ {[%clk 0:00:12]}  Kd6 {[%clk 0:00:06]} 47. Rff7 {[%clk 0:00:12]}  Rb3+ {[%clk 0:00:07]} 48. Kd2 {[%clk 0:00:10]}  Rxd4+ {[%clk 0:00:07]} 49. Kc2 {[%clk 0:00:10]}  Rbd3 {[%clk 0:00:06]} 50. Rxa7 {[%clk 0:00:07]}  Kc5 {[%clk 0:00:06]} 51. a5 {[%clk 0:00:05]}  Kb4 {[%clk 0:00:04]} 52. Rg2 {[%clk 0:00:02]}  Rc3+ {[%clk 0:00:04]} 53. Kb2 {[%clk 0:00:02]}  Rb3+ {[%clk 0:00:04]} 54. Ka2 {[%clk 0:00:01]}  Ra3+ {[%clk 0:00:04]} 55. Kb2 {[%clk 0:00:02]}  Rxa5 {[%clk 0:00:04]} 56. Rb7 {[%clk 0:00:02]}  Ra6 {[%clk 0:00:03]} 57. Re7 {[%clk 0:00:02]}  Rd6 {[%clk 0:00:03]} 58. Rg4 {[%clk 0:00:01]}  Rc6 {[%clk 0:00:03]} 59. c5+ {[%clk 0:00:01]}  Kxc5 {[%clk 0:00:03]} 60. Rg5+ {[%clk 0:00:02]}  Kb4 {[%clk 0:00:03]} 61. Rg4+ {[%clk 0:00:02]}  Kb5 {[%clk 0:00:04]} 62. Rg5+ {[%clk 0:00:03]}  Rc5 {[%clk 0:00:04]} 63. Rg4 {[%clk 0:00:02]}  e5 {[%clk 0:00:04]} 64. Re4 {[%clk 0:00:02]}  Ra4 {[%clk 0:00:04]} 65. R7xe5 {[%clk 0:00:02]}  Rb4+ {[%clk 0:00:04]} 66. Rxb4+ {[%clk 0:00:02]}  Kxb4 {[%clk 0:00:05]} 67. Re4+ {[%clk 0:00:02]}  Rc4 {[%clk 0:00:06]} 68. Re6 {[%clk 0:00:02]}  b5 {[%clk 0:00:06]} 69. Re3 {[%clk 0:00:03]}  Rh4 {[%clk 0:00:06]} 70. Rg3 {[%clk 0:00:03]}  Rh2+ {[%clk 0:00:06]} 71. Kb1 {[%clk 0:00:03]}  Ka4 {[%clk 0:00:06]} 72. Ka1 {[%clk 0:00:04]}  b4 {[%clk 0:00:07]} 73. Kb1 {[%clk 0:00:04]}  b3 {[%clk 0:00:07]} 74. Rg8 {[%clk 0:00:04]}  Ka3 {[%clk 0:00:08]} 75. Ra8+ {[%clk 0:00:03]}  Kb4 {[%clk 0:00:08]} 76. Rb8+ {[%clk 0:00:04]}  Kc3 {[%clk 0:00:09]} 77. Rc8+ {[%clk 0:00:05]}  Kd4 {[%clk 0:00:09]} 78. Rd8+ {[%clk 0:00:05]}  Kc5 {[%clk 0:00:10]} 79. Rc8+ {[%clk 0:00:06]}  Kd5 {[%clk 0:00:10]} 80. Rb8 {[%clk 0:00:06]}  Kc4 {[%clk 0:00:08]} 81. Rc8+ {[%clk 0:00:06]}  Kb4 {[%clk 0:00:09]} 82. Rb8+ {[%clk 0:00:06]}  Ka4 {[%clk 0:00:10]} 83. Ra8+ {[%clk 0:00:07]}  Kb5 {[%clk 0:00:10]} 84. Rb8+ {[%clk 0:00:08]}  Kc5 {[%clk 0:00:09]} 85. Rxb3 {[%clk 0:00:07]}  Rh4 {[%clk 0:00:10]} 86. Rg3 {[%clk 0:00:07]}  Rb4+ {[%clk 0:00:10]} 87. Kc2 {[%clk 0:00:07]}  Rc4+ {[%clk 0:00:11]} 88. Rc3 {[%clk 0:00:07]}  Kd4 {[%clk 0:00:11]} 89. Rxc4+ {[%clk 0:00:07]}  Kxc4 {[%clk 0:00:11]} 1/2-1/2


[Site "https://www.chess.com"]

[Event "Titled Tuesday Blitz January 03 Early 2023"]
[White "Sychev, Klementy"]
[Black "Balint, Vilmos"]
[WhiteFideId "4114060"]
[BlackFideId "718050"]
[WhiteElo "2547"]
[BlackElo "2169"]
[Result "1-0"]
[Round "01"]
[TimeControl "180+2"]
[Date "2023.01.03"]
[WhiteClock "0:00:15"]
[BlackClock "0:00:26"]

1. e4 {[%clk 0:02:59]}  e6 {[%clk 0:03:00]} 2. d4 {[%clk 0:02:56]}  d5 {[%clk 0:03:00]} 3. Nc3 {[%clk 0:02:53]}  Bb4 {[%clk 0:02:59]} 4. exd5 {[%clk 0:02:53]}  exd5 {[%clk 0:02:59]} 5. Bd3 {[%clk 0:02:53]}  Nf6 {[%clk 0:03:00]} 6. Ne2 {[%clk 0:02:52]}  h6 {[%clk 0:03:00]} 7. O-O {[%clk 0:02:52]}  O-O {[%clk 0:03:00]} 8. Ng3 {[%clk 0:02:42]}  Re8 {[%clk 0:02:48]} 9. Bf4 {[%clk 0:02:32]}  Bd6 {[%clk 0:02:46]} 10. Qd2 {[%clk 0:02:27]}  Bxf4 {[%clk 0:02:39]} 11. Qxf4 {[%clk 0:02:28]}  Nc6 {[%clk 0:02:36]} 12. Nb5 {[%clk 0:02:21]}  a6 {[%clk 0:02:09]} 13. Nc3 {[%clk 0:01:39]}  Nb4 {[%clk 0:02:10]} 14. Rfe1 {[%clk 0:01:35]}  Nxd3 {[%clk 0:02:10]} 15. cxd3 {[%clk 0:01:35]}  Be6 {[%clk 0:02:06]} 16. Re5 {[%clk 0:01:32]}  Qd6 {[%clk 0:02:05]} 17. Rae1 {[%clk 0:01:32]}  Qb4 {[%clk 0:01:54]} 18. R1e2 {[%clk 0:01:21]}  c5 {[%clk 0:01:36]} 19. Rc2 {[%clk 0:01:00]}  cxd4 {[%clk 0:01:20]} 20. Nge2 {[%clk 0:00:47]}  Nd7 {[%clk 0:01:09]} 21. Rh5 {[%clk 0:00:47]}  Nf6 {[%clk 0:00:51]} 22. Rh4 {[%clk 0:00:44]}  g5 {[%clk 0:00:41]} 23. Qxd4 {[%clk 0:00:27]}  Qxd4 {[%clk 0:00:41]} 24. Rxd4 {[%clk 0:00:27]}  Rac8 {[%clk 0:00:41]} 25. Rd2 {[%clk 0:00:20]}  Kg7 {[%clk 0:00:39]} 26. f3 {[%clk 0:00:20]}  Red8 {[%clk 0:00:30]} 27. Kf2 {[%clk 0:00:20]}  Bf5 {[%clk 0:00:31]} 28. g4 {[%clk 0:00:19]}  Be6 {[%clk 0:00:30]} 29. Kg3 {[%clk 0:00:17]}  Rd6 {[%clk 0:00:31]} 30. h4 {[%clk 0:00:17]}  Nd7 {[%clk 0:00:31]} 31. hxg5 {[%clk 0:00:16]}  hxg5 {[%clk 0:00:32]} 32. Ne4 {[%clk 0:00:16]}  dxe4 {[%clk 0:00:25]} 33. Rxd6 {[%clk 0:00:16]}  e3 {[%clk 0:00:25]} 34. Rd1 {[%clk 0:00:15]}  Bxa2 {[%clk 0:00:26]} 35. Rxd7 {[%clk 0:00:15]}  Bb3 {[%clk 0:00:26]} 36. Re1 {[%clk 0:00:14]}  Rc2 {[%clk 0:00:26]} 37. Nd4 {[%clk 0:00:14]}  Rxb2 {[%clk 0:00:25]} 38. Nxb3 {[%clk 0:00:14]}  Rxb3 {[%clk 0:00:26]} 39. Rxe3 {[%clk 0:00:15]} 1-0


[Site "https://www.chess.com"]

[Event "Titled Tuesday Blitz January 03 Early 2023"]
[White "Gjestemoen-VonHirsch, Andre"]
[Black "Kanakaris, Georgios"]
[WhiteFideId "1539531"]
[BlackFideId "4209460"]
[WhiteElo "2314"]
[BlackElo "2391"]
[Result "0-1"]
[Round "01"]
[TimeControl "180+2"]
[Date "2023.01.03"]
[WhiteClock "0:00:02"]
[BlackClock "0:00:14"]

1. b3 {[%clk 0:02:56]}  e5 {[%clk 0:02:59]} 2. Bb2 {[%clk 0:02:56]}  Nc6 {[%clk 0:03:00]} 3. e3 {[%clk 0:02:57]}  Nf6 {[%clk 0:03:00]} 4. Bb5 {[%clk 0:02:53]}  Bd6 {[%clk 0:02:58]} 5. c4 {[%clk 0:02:50]}  Qe7 {[%clk 0:02:54]} 6. Nc3 {[%clk 0:02:48]}  a6 {[%clk 0:02:53]} 7. Bxc6 {[%clk 0:02:48]}  dxc6 {[%clk 0:02:54]} 8. h3 {[%clk 0:02:47]}  e4 {[%clk 0:02:53]} 9. d3 {[%clk 0:02:22]}  exd3 {[%clk 0:02:42]} 10. Qxd3 {[%clk 0:02:21]}  O-O {[%clk 0:02:39]} 11. Nge2 {[%clk 0:02:19]}  Rd8 {[%clk 0:02:31]} 12. Qc2 {[%clk 0:02:01]}  b5 {[%clk 0:01:56]} 13. Nd4 {[%clk 0:01:48]}  Bd7 {[%clk 0:01:51]} 14. O-O {[%clk 0:01:37]}  g6 {[%clk 0:01:34]} 15. Rad1 {[%clk 0:01:20]}  b4 {[%clk 0:01:18]} 16. Nce2 {[%clk 0:01:08]}  c5 {[%clk 0:01:18]} 17. Nf3 {[%clk 0:01:07]}  Bc6 {[%clk 0:01:14]} 18. Qc1 {[%clk 0:00:18]}  Ne4 {[%clk 0:01:03]} 19. Qa1 {[%clk 0:00:17]}  f6 {[%clk 0:00:50]} 20. Nd2 {[%clk 0:00:15]}  Rf8 {[%clk 0:00:46]} 21. Nxe4 {[%clk 0:00:15]}  Qxe4 {[%clk 0:00:46]} 22. f3 {[%clk 0:00:12]}  Qxe3+ {[%clk 0:00:47]} 23. Rf2 {[%clk 0:00:12]}  Qg5 {[%clk 0:00:35]} 24. f4 {[%clk 0:00:11]}  Qf5 {[%clk 0:00:28]} 25. Rdf1 {[%clk 0:00:06]}  h5 {[%clk 0:00:19]} 26. Ng3 {[%clk 0:00:05]}  Qd3 {[%clk 0:00:19]} 27. Ne2 {[%clk 0:00:04]}  Qe3 {[%clk 0:00:19]} 28. f5 {[%clk 0:00:04]}  g5 {[%clk 0:00:19]} 29. Bxf6 {[%clk 0:00:04]}  Rae8 {[%clk 0:00:19]} 30. Bxg5 {[%clk 0:00:03]}  Qxg5 {[%clk 0:00:17]} 31. f6 {[%clk 0:00:04]}  Rf7 {[%clk 0:00:17]} 32. Qb1 {[%clk 0:00:04]}  Re3 {[%clk 0:00:15]} 33. Qc2 {[%clk 0:00:04]}  Rg3 {[%clk 0:00:15]} 34. Nf4 {[%clk 0:00:03]}  Bxf4 {[%clk 0:00:14]} 35. Qe2 {[%clk 0:00:03]}  Be3 {[%clk 0:00:14]} 36. Re1 {[%clk 0:00:02]} 0-1


[Site "https://www.chess.com"]

[Event "Titled Tuesday Blitz January 03 Early 2023"]
[White "Mustafayev, Farid"]
[Black "Qashashvili, Alexandre"]
[WhiteFideId "13408771"]
[BlackFideId "13600842"]
[WhiteElo "2316"]
[BlackElo "2505"]
[Result "1-0"]
[Round "01"]
[TimeControl "180+2"]
[Date "2023.01.03"]
[WhiteClock "0:00:33"]
[BlackClock "0:00:11"]

1. d4 {[%clk 0:02:59]}  c6 {[%clk 0:02:53]} 2. Nf3 {[%clk 0:02:54]}  d5 {[%clk 0:02:53]} 3. g3 {[%clk 0:02:55]}  Bf5 {[%clk 0:02:46]} 4. Bg2 {[%clk 0:02:54]}  Nf6 {[%clk 0:02:46]} 5. O-O {[%clk 0:02:55]}  Qc8 {[%clk 0:02:44]} 6. c4 {[%clk 0:02:50]}  Bh3 {[%clk 0:02:40]} 7. Nc3 {[%clk 0:02:49]}  h5 {[%clk 0:02:39]} 8. cxd5 {[%clk 0:02:47]}  h4 {[%clk 0:02:38]} 9. Bg5 {[%clk 0:02:38]}  hxg3 {[%clk 0:02:37]} 10. fxg3 {[%clk 0:02:39]}  Bxg2 {[%clk 0:02:38]} 11. Kxg2 {[%clk 0:02:39]}  Qh3+ {[%clk 0:02:37]} 12. Kg1 {[%clk 0:02:39]}  Ng4 {[%clk 0:02:37]} 13. Rf2 {[%clk 0:02:25]}  Nxf2 {[%clk 0:02:34]} 14. Kxf2 {[%clk 0:02:26]}  f6 {[%clk 0:02:24]} 15. Qb3 {[%clk 0:02:11]}  Qd7 {[%clk 0:02:17]} 16. Bf4 {[%clk 0:02:03]}  g5 {[%clk 0:02:14]} 17. Bd2 {[%clk 0:01:49]}  cxd5 {[%clk 0:02:11]} 18. Nxd5 {[%clk 0:01:47]}  Nc6 {[%clk 0:02:03]} 19. Rc1 {[%clk 0:01:47]}  Bh6 {[%clk 0:01:55]} 20. Rc5 {[%clk 0:01:24]}  g4 {[%clk 0:01:49]} 21. Bxh6 {[%clk 0:01:19]}  gxf3 {[%clk 0:01:44]} 22. Qe3 {[%clk 0:01:18]}  Kf7 {[%clk 0:01:01]} 23. exf3 {[%clk 0:01:18]}  Rae8 {[%clk 0:00:35]} 24. g4 {[%clk 0:01:12]}  b6 {[%clk 0:00:22]} 25. Rxc6 {[%clk 0:00:54]}  Qxc6 {[%clk 0:00:20]} 26. Nc3 {[%clk 0:00:54]}  Qe6 {[%clk 0:00:19]} 27. Qd2 {[%clk 0:00:52]}  f5 {[%clk 0:00:16]} 28. g5 {[%clk 0:00:45]}  Rd8 {[%clk 0:00:15]} 29. d5 {[%clk 0:00:41]}  Qe5 {[%clk 0:00:14]} 30. f4 {[%clk 0:00:42]}  Qd6 {[%clk 0:00:10]} 31. Qe2 {[%clk 0:00:41]}  Qc5+ {[%clk 0:00:10]} 32. Kg2 {[%clk 0:00:41]}  Rxd5 {[%clk 0:00:11]} 33. Qh5+ {[%clk 0:00:40]}  Ke6 {[%clk 0:00:10]} 34. Qg6+ {[%clk 0:00:37]}  Kd7 {[%clk 0:00:10]} 35. Nxd5 {[%clk 0:00:36]}  Qxd5+ {[%clk 0:00:11]} 36. Kg3 {[%clk 0:00:37]}  Rc8 {[%clk 0:00:11]} 37. Qh5 {[%clk 0:00:33]}  Rc2 {[%clk 0:00:10]} 38. Qf3 {[%clk 0:00:33]}  Qd2 {[%clk 0:00:09]} 39. Qb7+ {[%clk 0:00:21]}  Ke6 {[%clk 0:00:09]} 40. Qh1 {[%clk 0:00:17]}  Qf2+ {[%clk 0:00:09]} 41. Kh3 {[%clk 0:00:18]}  Qxf4 {[%clk 0:00:08]} 42. Qe1+ {[%clk 0:00:17]}  Kf7 {[%clk 0:00:07]} 43. g6+ {[%clk 0:00:18]}  Kxg6 {[%clk 0:00:04]} 44. Bxf4 {[%clk 0:00:19]}  Rc4 {[%clk 0:00:03]} 45. Qe6+ {[%clk 0:00:18]}  Kg7 {[%clk 0:00:03]} 46. Be5+ {[%clk 0:00:18]}  Kh7 {[%clk 0:00:02]} 47. Qxf5+ {[%clk 0:00:17]}  Kh6 {[%clk 0:00:01]} 48. Qe6+ {[%clk 0:00:17]}  Kg5 {[%clk 0:00:01]} 49. Qxc4 {[%clk 0:00:17]}  Kf5 {[%clk 0:00:02]} 50. Qf4+ {[%clk 0:00:18]}  Ke6 {[%clk 0:00:02]} 51. Bb8 {[%clk 0:00:18]}  Kd5 {[%clk 0:00:03]} 52. Bxa7 {[%clk 0:00:19]}  Kc6 {[%clk 0:00:03]} 53. Qe3 {[%clk 0:00:19]}  e5 {[%clk 0:00:02]} 54. Qxb6+ {[%clk 0:00:20]}  Kd5 {[%clk 0:00:02]} 55. Qb5+ {[%clk 0:00:21]}  Ke4 {[%clk 0:00:03]} 56. Bb8 {[%clk 0:00:22]}  Kf3 {[%clk 0:00:03]} 57. Qxe5 {[%clk 0:00:21]}  Kf2 {[%clk 0:00:03]} 58. Ba7+ {[%clk 0:00:21]}  Kf1 {[%clk 0:00:02]} 59. Be3 {[%clk 0:00:20]}  Ke2 {[%clk 0:00:02]} 60. Qd4 {[%clk 0:00:20]}  Kf3 {[%clk 0:00:03]} 61. Bh6 {[%clk 0:00:20]}  Ke2 {[%clk 0:00:03]} 62. b4 {[%clk 0:00:21]}  Kf3 {[%clk 0:00:04]} 63. b5 {[%clk 0:00:21]}  Ke2 {[%clk 0:00:05]} 64. b6 {[%clk 0:00:22]}  Kf3 {[%clk 0:00:05]} 65. b7 {[%clk 0:00:23]}  Ke2 {[%clk 0:00:06]} 66. b8=Q {[%clk 0:00:24]}  Kf1 {[%clk 0:00:07]} 67. a4 {[%clk 0:00:25]}  Ke2 {[%clk 0:00:07]} 68. a5 {[%clk 0:00:26]}  Kf1 {[%clk 0:00:08]} 69. a6 {[%clk 0:00:27]}  Ke2 {[%clk 0:00:08]} 70. a7 {[%clk 0:00:28]}  Kf1 {[%clk 0:00:09]} 71. a8=Q {[%clk 0:00:28]}  Ke2 {[%clk 0:00:10]} 72. Kg3 {[%clk 0:00:28]}  Kf1 {[%clk 0:00:09]} 73. h4 {[%clk 0:00:29]}  Ke2 {[%clk 0:00:09]} 74. h5 {[%clk 0:00:30]}  Ke1 {[%clk 0:00:09]} 75. Bf4 {[%clk 0:00:31]}  Ke2 {[%clk 0:00:10]} 76. h6 {[%clk 0:00:32]}  Ke1 {[%clk 0:00:11]} 77. h7 {[%clk 0:00:33]}  Ke2 {[%clk 0:00:11]} 78. h8=Q {[%clk 0:00:33]}  Kf1 {[%clk 0:00:12]} 79. Qh2 {[%clk 0:00:33]}  Ke1 {[%clk 0:00:12]} 80. Qa5+ {[%clk 0:00:32]}  Kf1 {[%clk 0:00:11]} 81. Qbb5# {[%clk 0:00:33]} 1-0


[Site "https://www.chess.com"]